[Event "Titled Tuesday Blitz August 15 Early 2023"]
[White "Badmatsyrenov, Oleg"]
[Black "Terry, Renato"]
[WhiteFideId "24115762"]
[BlackFideId "3803457"]
[WhiteElo "2751"]
[BlackElo "2927"]
[Result "0-1"]
[Round "6"]
[TimeControl "180+1"]
[Date "2023.08.15"]
[WhiteClock "0:00:01"]
[BlackClock "0:00:17"]
[Board "24"]

1. e4 {[%clk 0:02:56]}  c6 {[%clk 0:02:58]} 2. d4 {[%clk 0:02:56]}  d5 {[%clk 0:02:59]} 3. Nc3 {[%clk 0:02:56]}  g6 {[%clk 0:02:58]} 4. h3 {[%clk 0:02:56]}  Bg7 {[%clk 0:02:59]} 5. Nf3 {[%clk 0:02:57]}  Nh6 {[%clk 0:02:59]} 6. Bxh6 {[%clk 0:02:56]}  Bxh6 {[%clk 0:02:59]} 7. Bd3 {[%clk 0:02:55]}  O-O {[%clk 0:02:57]} 8. O-O {[%clk 0:02:56]}  e6 {[%clk 0:02:54]} 9. Re1 {[%clk 0:02:56]}  Nd7 {[%clk 0:02:54]} 10. Qe2 {[%clk 0:02:56]}  a6 {[%clk 0:02:48]} 11. Rad1 {[%clk 0:02:56]}  b5 {[%clk 0:02:48]} 12. exd5 {[%clk 0:02:43]}  cxd5 {[%clk 0:02:48]} 13. Ne5 {[%clk 0:02:43]}  Nxe5 {[%clk 0:02:43]} 14. dxe5 {[%clk 0:02:44]}  b4 {[%clk 0:02:37]} 15. Na4 {[%clk 0:02:43]}  Qa5 {[%clk 0:02:36]} 16. b3 {[%clk 0:02:42]}  Bd7 {[%clk 0:02:36]} 17. Nb2 {[%clk 0:02:33]}  Qa3 {[%clk 0:02:10]} 18. Rb1 {[%clk 0:02:32]}  Rfc8 {[%clk 0:02:09]} 19. Nd1 {[%clk 0:02:30]}  Qxa2 {[%clk 0:02:05]} 20. Ne3 {[%clk 0:02:30]}  Bxe3 {[%clk 0:01:54]} 21. Qxe3 {[%clk 0:02:30]}  Qa5 {[%clk 0:01:54]} 22. Qf4 {[%clk 0:02:12]}  Bb5 {[%clk 0:01:52]} 23. Ra1 {[%clk 0:02:07]}  Qc7 {[%clk 0:01:52]} 24. Qxb4 {[%clk 0:02:00]}  Bxd3 {[%clk 0:01:51]} 25. cxd3 {[%clk 0:02:01]}  Rcb8 {[%clk 0:01:49]} 26. Qa4 {[%clk 0:01:58]}  Qc3 {[%clk 0:01:47]} 27. Rec1 {[%clk 0:01:44]}  Qxd3 {[%clk 0:01:28]} 28. Qf4 {[%clk 0:01:43]}  Rxb3 {[%clk 0:01:14]} 29. Qf6 {[%clk 0:01:24]}  Rbb8 {[%clk 0:00:49]} 30. Rc7 {[%clk 0:01:02]}  Rf8 {[%clk 0:00:48]} 31. g4 {[%clk 0:00:26]}  Qxh3 {[%clk 0:00:45]} 32. Ra4 {[%clk 0:00:26]}  Rab8 {[%clk 0:00:42]} 33. Rc1 {[%clk 0:00:25]}  a5 {[%clk 0:00:36]} 34. Rf4 {[%clk 0:00:25]}  Rb4 {[%clk 0:00:28]} 35. g5 {[%clk 0:00:07]}  Rxf4 {[%clk 0:00:21]} 36. Qxf4 {[%clk 0:00:08]}  Qf5 {[%clk 0:00:22]} 37. Qxf5 {[%clk 0:00:02]}  gxf5 {[%clk 0:00:21]} 38. Ra1 {[%clk 0:00:03]}  Ra8 {[%clk 0:00:20]} 39. Ra4 {[%clk 0:00:04]}  Kg7 {[%clk 0:00:20]} 40. f4 {[%clk 0:00:05]}  h6 {[%clk 0:00:20]} 41. gxh6+ {[%clk 0:00:05]}  Kxh6 {[%clk 0:00:21]} 42. Kf2 {[%clk 0:00:05]}  Kh5 {[%clk 0:00:21]} 43. Kg3 {[%clk 0:00:05]}  Kg6 {[%clk 0:00:19]} 44. Kf3 {[%clk 0:00:06]}  Kg7 {[%clk 0:00:18]} 45. Ke3 {[%clk 0:00:06]}  Kh7 {[%clk 0:00:18]} 46. Kd4 {[%clk 0:00:07]}  Kg6 {[%clk 0:00:18]} 47. Kc5 {[%clk 0:00:08]}  Kh5 {[%clk 0:00:17]} 48. Kd6 {[%clk 0:00:08]}  Kg4 {[%clk 0:00:17]} 49. Ke7 {[%clk 0:00:09]}  Ra7+ {[%clk 0:00:17]} 50. Kd6 {[%clk 0:00:08]}  Kf3 {[%clk 0:00:18]} 51. Kc6 {[%clk 0:00:07]}  Ke3 {[%clk 0:00:18]} 52. Kb6 {[%clk 0:00:08]}  Ra8 {[%clk 0:00:18]} 53. Kb7 {[%clk 0:00:07]}  Rf8 {[%clk 0:00:18]} 54. Rxa5 {[%clk 0:00:06]}  Kxf4 {[%clk 0:00:18]} 55. Ra8 {[%clk 0:00:01]}  Rxa8 {[%clk 0:00:17]} 0-1


[Site "https://www.chess.com"]

[Event "Titled Tuesday Blitz August 15 Early 2023"]
[White "Papasimakopoulos, Alexandros"]
[Black "Galchenko, Matvey"]
[WhiteFideId "4244125"]
[BlackFideId "24175480"]
[WhiteElo "2688"]
[BlackElo "2902"]
[Result "1/2-1/2"]
[Round "6"]
[TimeControl "180+1"]
[Date "2023.08.15"]
[WhiteClock "0:00:38"]
[BlackClock "0:00:11"]
[Board "31"]

1. d4 {[%clk 0:03:00]}  Nf6 {[%clk 0:02:55]} 2. c4 {[%clk 0:03:00]}  c5 {[%clk 0:02:55]} 3. d5 {[%clk 0:03:01]}  e6 {[%clk 0:02:56]} 4. Nc3 {[%clk 0:03:00]}  exd5 {[%clk 0:02:57]} 5. cxd5 {[%clk 0:03:01]}  d6 {[%clk 0:02:58]} 6. Nf3 {[%clk 0:03:02]}  g6 {[%clk 0:02:59]} 7. Bf4 {[%clk 0:03:03]}  Bg7 {[%clk 0:02:59]} 8. Qa4+ {[%clk 0:03:02]}  Bd7 {[%clk 0:02:59]} 9. Qb3 {[%clk 0:03:03]}  O-O {[%clk 0:03:00]} 10. Bxd6 {[%clk 0:03:02]}  Ba4 {[%clk 0:02:59]} 11. Qxa4 {[%clk 0:02:50]}  Qxd6 {[%clk 0:02:54]} 12. Rd1 {[%clk 0:02:51]}  Nbd7 {[%clk 0:02:45]} 13. e3 {[%clk 0:02:47]}  a6 {[%clk 0:02:45]} 14. Qb3 {[%clk 0:02:39]}  b5 {[%clk 0:02:45]} 15. a3 {[%clk 0:02:39]}  b4 {[%clk 0:02:35]} 16. axb4 {[%clk 0:02:26]}  cxb4 {[%clk 0:02:35]} 17. Na4 {[%clk 0:02:26]}  Ne4 {[%clk 0:02:35]} 18. Be2 {[%clk 0:02:20]}  Ndc5 {[%clk 0:02:34]} 19. Nxc5 {[%clk 0:02:20]}  Nxc5 {[%clk 0:02:35]} 20. Qc2 {[%clk 0:02:13]}  b3 {[%clk 0:02:35]} 21. Qb1 {[%clk 0:02:10]}  Na4 {[%clk 0:02:34]} 22. Rd2 {[%clk 0:02:08]}  Rac8 {[%clk 0:01:45]} 23. O-O {[%clk 0:02:07]}  Rc5 {[%clk 0:01:46]} 24. Nd4 {[%clk 0:02:06]}  Qxd5 {[%clk 0:01:34]} 25. Bxa6 {[%clk 0:02:04]}  Rb8 {[%clk 0:01:23]} 26. Be2 {[%clk 0:02:02]}  Qb7 {[%clk 0:01:19]} 27. Bf3 {[%clk 0:02:02]}  Qc7 {[%clk 0:01:19]} 28. h3 {[%clk 0:01:56]}  Bxd4 {[%clk 0:01:13]} 29. Rxd4 {[%clk 0:01:57]}  Nb6 {[%clk 0:01:10]} 30. Qd3 {[%clk 0:01:55]}  Nc4 {[%clk 0:01:09]} 31. Rd7 {[%clk 0:01:34]}  Nxb2 {[%clk 0:01:07]} 32. Qd4 {[%clk 0:01:25]}  Qe5 {[%clk 0:01:06]} 33. Rb1 {[%clk 0:01:18]}  Qxd4 {[%clk 0:01:01]} 34. exd4 {[%clk 0:01:19]}  Rc2 {[%clk 0:01:01]} 35. Bd5 {[%clk 0:01:19]}  Rd2 {[%clk 0:00:49]} 36. Rxf7 {[%clk 0:01:11]}  Kh8 {[%clk 0:00:50]} 37. Rb7 {[%clk 0:01:09]}  Rxb7 {[%clk 0:00:48]} 38. Bxb7 {[%clk 0:01:10]}  Rd1+ {[%clk 0:00:35]} 39. Rxd1 {[%clk 0:01:08]}  Nxd1 {[%clk 0:00:36]} 40. Be4 {[%clk 0:01:00]}  Nc3 {[%clk 0:00:36]} 41. Bd3 {[%clk 0:00:59]}  b2 {[%clk 0:00:36]} 42. Kf1 {[%clk 0:01:00]}  Kg7 {[%clk 0:00:33]} 43. Ke1 {[%clk 0:01:00]}  Kf6 {[%clk 0:00:29]} 44. Kd2 {[%clk 0:01:00]}  b1=Q {[%clk 0:00:30]} 45. Bxb1 {[%clk 0:01:01]}  Nxb1+ {[%clk 0:00:30]} 46. Kd3 {[%clk 0:01:02]}  Na3 {[%clk 0:00:30]} 47. f4 {[%clk 0:00:54]}  Kf5 {[%clk 0:00:28]} 48. g3 {[%clk 0:00:54]}  h5 {[%clk 0:00:22]} 49. d5 {[%clk 0:00:54]}  Nb5 {[%clk 0:00:15]} 50. Kc4 {[%clk 0:00:51]}  Nd6+ {[%clk 0:00:15]} 51. Kd4 {[%clk 0:00:51]}  Kf6 {[%clk 0:00:14]} 52. g4 {[%clk 0:00:51]}  h4 {[%clk 0:00:05]} 53. Kc5 {[%clk 0:00:50]}  Ke7 {[%clk 0:00:06]} 54. Kc6 {[%clk 0:00:49]}  Ne4 {[%clk 0:00:06]} 55. Kc7 {[%clk 0:00:43]}  Nd6 {[%clk 0:00:06]} 56. Kc6 {[%clk 0:00:42]}  Ne8 {[%clk 0:00:07]} 57. f5 {[%clk 0:00:37]}  gxf5 {[%clk 0:00:05]} 58. gxf5 {[%clk 0:00:38]}  Kf6 {[%clk 0:00:04]} 59. d6 {[%clk 0:00:33]}  Nxd6 {[%clk 0:00:04]} 60. Kxd6 {[%clk 0:00:33]}  Kxf5 {[%clk 0:00:05]} 61. Kd5 {[%clk 0:00:34]}  Kf4 {[%clk 0:00:06]} 62. Kd4 {[%clk 0:00:35]}  Kg3 {[%clk 0:00:06]} 63. Ke3 {[%clk 0:00:35]}  Kxh3 {[%clk 0:00:07]} 64. Kf2 {[%clk 0:00:36]}  Kh2 {[%clk 0:00:08]} 65. Kf1 {[%clk 0:00:37]}  h3 {[%clk 0:00:09]} 66. Kf2 {[%clk 0:00:37]}  Kh1 {[%clk 0:00:10]} 67. Kf1 {[%clk 0:00:38]}  h2 {[%clk 0:00:11]} 68. Kf2 {[%clk 0:00:38]} 1/2-1/2


[Site "https://www.chess.com"]

[Event "Titled Tuesday Blitz August 15 Early 2023"]
[White "Degenbaev, Aziz"]
[Black "Lysyj, Igor"]
[WhiteFideId "13802640"]
[BlackFideId "4150120"]
[WhiteElo "2548"]
[BlackElo "2869"]
[Result "0-1"]
[Round "6"]
[TimeControl "180+1"]
[Date "2023.08.15"]
[WhiteClock "0:00:31"]
[BlackClock "0:01:13"]
[Board "34"]

1. e4 {[%clk 0:03:00]}  e5 {[%clk 0:02:59]} 2. Nf3 {[%clk 0:03:00]}  Nc6 {[%clk 0:02:59]} 3. d4 {[%clk 0:02:59]}  exd4 {[%clk 0:02:59]} 4. Nxd4 {[%clk 0:03:00]}  Nf6 {[%clk 0:02:59]} 5. Nxc6 {[%clk 0:03:01]}  bxc6 {[%clk 0:02:58]} 6. e5 {[%clk 0:03:01]}  Qe7 {[%clk 0:02:58]} 7. Qe2 {[%clk 0:03:02]}  Nd5 {[%clk 0:02:58]} 8. h4 {[%clk 0:03:02]}  d6 {[%clk 0:02:54]} 9. exd6 {[%clk 0:02:59]}  Qxe2+ {[%clk 0:02:51]} 10. Bxe2 {[%clk 0:02:59]}  Bxd6 {[%clk 0:02:51]} 11. c4 {[%clk 0:02:59]}  Nb4 {[%clk 0:02:50]} 12. Na3 {[%clk 0:02:39]}  Bf5 {[%clk 0:02:45]} 13. O-O {[%clk 0:02:35]}  O-O-O {[%clk 0:02:40]} 14. Be3 {[%clk 0:02:30]}  Be5 {[%clk 0:02:29]} 15. g4 {[%clk 0:01:51]}  Be4 {[%clk 0:02:20]} 16. f3 {[%clk 0:01:46]}  Bd3 {[%clk 0:02:19]} 17. Bxd3 {[%clk 0:01:43]}  Rxd3 {[%clk 0:02:19]} 18. Bc5 {[%clk 0:01:43]}  a5 {[%clk 0:01:59]} 19. Rf2 {[%clk 0:01:00]}  Na6 {[%clk 0:01:43]} 20. Re2 {[%clk 0:01:00]}  f6 {[%clk 0:01:30]} 21. Bf2 {[%clk 0:00:54]}  Rxf3 {[%clk 0:01:22]} 22. Nc2 {[%clk 0:00:53]}  Rd8 {[%clk 0:01:19]} 23. Ne3 {[%clk 0:00:46]}  Nb4 {[%clk 0:01:16]} 24. g5 {[%clk 0:00:31]}  Nd3 {[%clk 0:01:13]} 0-1


[Site "https://www.chess.com"]

[Event "Titled Tuesday Blitz August 15 Early 2023"]
[White "Gubajdullin, Alexei"]
[Black "Kashefi, Amir Hosein"]
[WhiteFideId "4141202"]
[BlackFideId "12557935"]
[WhiteElo "2709"]
[BlackElo "2520"]
[Result "1-0"]
[Round "6"]
[TimeControl "180+1"]
[Date "2023.08.15"]
[WhiteClock "0:00:10"]
[BlackClock "0:00:00"]
[Board "35"]

1. d4 {[%clk 0:02:59]}  d5 {[%clk 0:02:58]} 2. Nf3 {[%clk 0:02:57]}  Nf6 {[%clk 0:02:57]} 3. Bf4 {[%clk 0:02:57]}  c6 {[%clk 0:02:57]} 4. Nbd2 {[%clk 0:02:57]}  Bg4 {[%clk 0:02:57]} 5. e3 {[%clk 0:02:54]}  e6 {[%clk 0:02:58]} 6. c4 {[%clk 0:02:52]}  Bd6 {[%clk 0:02:58]} 7. Bxd6 {[%clk 0:02:49]}  Qxd6 {[%clk 0:02:59]} 8. Qb3 {[%clk 0:02:49]}  Qc7 {[%clk 0:02:38]} 9. Ne5 {[%clk 0:02:49]}  O-O {[%clk 0:02:35]} 10. Nxg4 {[%clk 0:02:46]}  Nxg4 {[%clk 0:02:36]} 11. Be2 {[%clk 0:02:46]}  Nf6 {[%clk 0:02:31]} 12. Rc1 {[%clk 0:02:43]}  Qb6 {[%clk 0:02:29]} 13. Qxb6 {[%clk 0:02:31]}  axb6 {[%clk 0:02:30]} 14. a3 {[%clk 0:02:31]}  Nbd7 {[%clk 0:02:30]} 15. O-O {[%clk 0:02:25]}  g6 {[%clk 0:02:30]} 16. Rfd1 {[%clk 0:02:23]}  Kg7 {[%clk 0:02:30]} 17. h4 {[%clk 0:02:17]}  Rfe8 {[%clk 0:02:30]} 18. Kf1 {[%clk 0:02:16]}  h5 {[%clk 0:02:29]} 19. Nf3 {[%clk 0:02:14]}  Ne4 {[%clk 0:02:13]} 20. g3 {[%clk 0:02:12]}  Nd6 {[%clk 0:02:11]} 21. Rc2 {[%clk 0:02:09]}  dxc4 {[%clk 0:02:03]} 22. Bxc4 {[%clk 0:02:08]}  Nxc4 {[%clk 0:02:02]} 23. Rxc4 {[%clk 0:02:08]}  b5 {[%clk 0:02:03]} 24. Rc2 {[%clk 0:02:07]}  Nb6 {[%clk 0:02:03]} 25. Ne5 {[%clk 0:02:07]}  Ra4 {[%clk 0:01:57]} 26. Rdc1 {[%clk 0:02:05]}  b4 {[%clk 0:01:52]} 27. axb4 {[%clk 0:02:03]}  Rxb4 {[%clk 0:01:53]} 28. Nd3 {[%clk 0:02:03]}  Rb5 {[%clk 0:01:50]} 29. Rc5 {[%clk 0:02:03]}  Rb3 {[%clk 0:01:48]} 30. R1c3 {[%clk 0:02:03]}  Rxc3 {[%clk 0:01:45]} 31. Rxc3 {[%clk 0:01:58]}  Ra8 {[%clk 0:01:37]} 32. Rb3 {[%clk 0:01:57]}  Ra6 {[%clk 0:01:19]} 33. Nc5 {[%clk 0:01:57]}  Ra1+ {[%clk 0:01:16]} 34. Ke2 {[%clk 0:01:56]}  Na4 {[%clk 0:01:01]} 35. Rxb7 {[%clk 0:01:50]}  Nxc5 {[%clk 0:00:54]} 36. dxc5 {[%clk 0:01:49]}  Rc1 {[%clk 0:00:51]} 37. b4 {[%clk 0:01:49]}  Rc2+ {[%clk 0:00:51]} 38. Kd3 {[%clk 0:01:45]}  Rxf2 {[%clk 0:00:45]} 39. Rb6 {[%clk 0:01:32]}  Rb2 {[%clk 0:00:41]} 40. Kc3 {[%clk 0:01:32]}  Re2 {[%clk 0:00:40]} 41. Rxc6 {[%clk 0:01:25]}  Rxe3+ {[%clk 0:00:40]} 42. Kd4 {[%clk 0:01:21]}  Rxg3 {[%clk 0:00:39]} 43. b5 {[%clk 0:01:21]}  g5 {[%clk 0:00:39]} 44. b6 {[%clk 0:01:18]}  Rb3 {[%clk 0:00:38]} 45. hxg5 {[%clk 0:01:09]}  h4 {[%clk 0:00:38]} 46. Kc4 {[%clk 0:01:09]}  Rb1 {[%clk 0:00:20]} 47. Rd6 {[%clk 0:01:09]}  Kg6 {[%clk 0:00:17]} 48. Rd3 {[%clk 0:01:02]}  Kxg5 {[%clk 0:00:16]} 49. Rd7 {[%clk 0:00:39]}  Kg6 {[%clk 0:00:06]} 50. Rd8 {[%clk 0:00:36]}  Kg7 {[%clk 0:00:03]} 51. Rd4 {[%clk 0:00:35]}  h3 {[%clk 0:00:01]} 52. Rh4 {[%clk 0:00:33]}  f5 {[%clk 0:00:02]} 53. Rxh3 {[%clk 0:00:30]}  f4 {[%clk 0:00:02]} 54. Kd4 {[%clk 0:00:23]}  Kf6 {[%clk 0:00:01]} 55. Ke4 {[%clk 0:00:22]}  e5 {[%clk 0:00:02]} 56. Rh6+ {[%clk 0:00:22]}  Kg5 {[%clk 0:00:02]} 57. Re6 {[%clk 0:00:21]}  Re1+ {[%clk 0:00:02]} 58. Kd5 {[%clk 0:00:20]}  f3 {[%clk 0:00:02]} 59. Re8 {[%clk 0:00:19]}  e4 {[%clk 0:00:02]} 60. Rf8 {[%clk 0:00:19]}  Kg4 {[%clk 0:00:01]} 61. b7 {[%clk 0:00:18]}  Rb1 {[%clk 0:00:01]} 62. c6 {[%clk 0:00:18]}  e3 {[%clk 0:00:01]} 63. b8=Q {[%clk 0:00:15]}  e2 {[%clk 0:00:02]} 64. Qc8+ {[%clk 0:00:14]}  Kg3 {[%clk 0:00:02]} 65. Qc7+ {[%clk 0:00:12]}  Kg2 {[%clk 0:00:01]} 66. Rg8+ {[%clk 0:00:11]}  Kf1 {[%clk 0:00:01]} 67. Qh2 {[%clk 0:00:11]}  Rd1+ {[%clk 0:00:02]} 68. Kc5 {[%clk 0:00:11]}  Rc1+ {[%clk 0:00:01]} 69. Kb6 {[%clk 0:00:11]}  Ke1 {[%clk 0:00:01]} 70. Rg1+ {[%clk 0:00:10]}  Kd2 {[%clk 0:00:01]} 71. Qf4+ {[%clk 0:00:10]}  Kd3 {[%clk 0:00:01]} 72. Qxc1 {[%clk 0:00:10]}  f2 {[%clk 0:00:01]} 73. c7 {[%clk 0:00:10]}  f1=Q {[%clk 0:00:01]} 74. Rxf1 {[%clk 0:00:10]}  e1=Q {[%clk 0:00:00]} 75. Rxe1 {[%clk 0:00:10]} 1-0


[Site "https://www.chess.com"]

[Event "Titled Tuesday Blitz August 15 Early 2023"]
[White "Shyam, Sundar M."]
[Black "Indjic, Aleksandar"]
[WhiteFideId "5019141"]
[BlackFideId "911925"]
[WhiteElo "2700"]
[BlackElo "3016"]
[Result "0-1"]
[Round "6"]
[TimeControl "180+1"]
[Date "2023.08.15"]
[WhiteClock "0:00:06"]
[BlackClock "0:01:20"]
[Board "37"]

1. e4 {[%clk 0:02:55]}  e5 {[%clk 0:03:00]} 2. Nf3 {[%clk 0:02:55]}  Nc6 {[%clk 0:03:00]} 3. Bb5 {[%clk 0:02:55]}  a6 {[%clk 0:03:01]} 4. Ba4 {[%clk 0:02:56]}  Nf6 {[%clk 0:03:01]} 5. O-O {[%clk 0:02:56]}  Be7 {[%clk 0:03:01]} 6. d3 {[%clk 0:02:56]}  b5 {[%clk 0:03:00]} 7. Bb3 {[%clk 0:02:56]}  d6 {[%clk 0:03:00]} 8. Bd2 {[%clk 0:02:55]}  O-O {[%clk 0:03:00]} 9. Re1 {[%clk 0:02:52]}  h6 {[%clk 0:02:58]} 10. a3 {[%clk 0:02:47]}  Bg4 {[%clk 0:02:41]} 11. c3 {[%clk 0:02:45]}  Na5 {[%clk 0:02:40]} 12. Bc2 {[%clk 0:02:45]}  c5 {[%clk 0:02:40]} 13. h3 {[%clk 0:02:46]}  Bh5 {[%clk 0:02:38]} 14. Bc1 {[%clk 0:02:34]}  c4 {[%clk 0:02:36]} 15. Nbd2 {[%clk 0:02:34]}  cxd3 {[%clk 0:02:36]} 16. Bxd3 {[%clk 0:02:35]}  Nd7 {[%clk 0:02:35]} 17. b4 {[%clk 0:02:33]}  Nc6 {[%clk 0:02:34]} 18. Nf1 {[%clk 0:02:33]}  Nb6 {[%clk 0:02:31]} 19. Be3 {[%clk 0:02:32]}  Na4 {[%clk 0:02:30]} 20. Rc1 {[%clk 0:02:09]}  Nb2 {[%clk 0:02:28]} 21. Qe2 {[%clk 0:02:08]}  Nxd3 {[%clk 0:02:27]} 22. Qxd3 {[%clk 0:02:09]}  Bxf3 {[%clk 0:02:23]} 23. gxf3 {[%clk 0:02:10]}  Bg5 {[%clk 0:02:22]} 24. Kh2 {[%clk 0:02:00]}  Qf6 {[%clk 0:02:20]} 25. Bxg5 {[%clk 0:01:59]}  Qxg5 {[%clk 0:02:18]} 26. Ne3 {[%clk 0:01:55]}  Ne7 {[%clk 0:02:15]} 27. Rg1 {[%clk 0:01:40]}  Qf4+ {[%clk 0:02:13]} 28. Rg3 {[%clk 0:01:40]}  h5 {[%clk 0:02:00]} 29. Kg2 {[%clk 0:01:29]}  Rfd8 {[%clk 0:01:53]} 30. Rg1 {[%clk 0:01:21]}  Rac8 {[%clk 0:01:50]} 31. Kf1 {[%clk 0:00:52]}  g6 {[%clk 0:01:50]} 32. Ke2 {[%clk 0:00:43]}  Kf8 {[%clk 0:01:48]} 33. Qd2 {[%clk 0:00:41]}  Rc6 {[%clk 0:01:45]} 34. Rc1 {[%clk 0:00:38]}  d5 {[%clk 0:01:42]} 35. Nxd5 {[%clk 0:00:24]}  Nxd5 {[%clk 0:01:34]} 36. exd5 {[%clk 0:00:23]}  Qxd2+ {[%clk 0:01:33]} 37. Kxd2 {[%clk 0:00:24]}  Rxd5+ {[%clk 0:01:33]} 38. Kc2 {[%clk 0:00:24]}  Rc4 {[%clk 0:01:30]} 39. Kb3 {[%clk 0:00:17]}  Rf4 {[%clk 0:01:28]} 40. Re1 {[%clk 0:00:15]}  h4 {[%clk 0:01:24]} 41. Rg5 {[%clk 0:00:15]}  Rxf3 {[%clk 0:01:24]} 42. Rgxe5 {[%clk 0:00:14]}  Rdd3 {[%clk 0:01:24]} 43. R5e3 {[%clk 0:00:13]}  Rxh3 {[%clk 0:01:24]} 44. a4 {[%clk 0:00:07]}  bxa4+ {[%clk 0:01:24]} 45. Kxa4 {[%clk 0:00:07]}  Rxc3 {[%clk 0:01:24]} 46. Ka5 {[%clk 0:00:06]}  Rhxe3 {[%clk 0:01:22]} 47. fxe3 {[%clk 0:00:06]}  Ra3+ {[%clk 0:01:22]} 48. Kb6 {[%clk 0:00:07]}  g5 {[%clk 0:01:20]} 49. e4 {[%clk 0:00:06]}  g4 {[%clk 0:01:20]} 0-1


[Site "https://www.chess.com"]

[Event "Titled Tuesday Blitz August 15 Early 2023"]
[White "Prohaszka, Peter"]
[Black "Moskalenko, Alexander"]
[WhiteFideId "726265"]
[BlackFideId "4155351"]
[WhiteElo "2691"]
[BlackElo "2896"]
[Result "1/2-1/2"]
[Round "6"]
[TimeControl "180+1"]
[Date "2023.08.15"]
[WhiteClock "0:00:01"]
[BlackClock "0:00:06"]
[Board "40"]

1. e4 {[%clk 0:02:52]}  e5 {[%clk 0:02:59]} 2. Nf3 {[%clk 0:02:52]}  Nc6 {[%clk 0:02:59]} 3. Bc4 {[%clk 0:02:52]}  Nf6 {[%clk 0:02:59]} 4. d3 {[%clk 0:02:52]}  h6 {[%clk 0:02:57]} 5. a4 {[%clk 0:02:40]}  d6 {[%clk 0:02:53]} 6. a5 {[%clk 0:02:39]}  a6 {[%clk 0:02:53]} 7. Nc3 {[%clk 0:02:32]}  g6 {[%clk 0:02:52]} 8. Nd5 {[%clk 0:02:31]}  Bg7 {[%clk 0:02:50]} 9. c3 {[%clk 0:02:30]}  Nxd5 {[%clk 0:02:50]} 10. Bxd5 {[%clk 0:02:30]}  Ne7 {[%clk 0:02:47]} 11. Bb3 {[%clk 0:02:22]}  Be6 {[%clk 0:02:47]} 12. Bxe6 {[%clk 0:02:21]}  fxe6 {[%clk 0:02:47]} 13. Qb3 {[%clk 0:02:06]}  Qd7 {[%clk 0:02:43]} 14. h4 {[%clk 0:02:01]}  O-O {[%clk 0:02:40]} 15. h5 {[%clk 0:02:01]}  g5 {[%clk 0:02:36]} 16. Nh2 {[%clk 0:02:00]}  c5 {[%clk 0:02:32]} 17. Be3 {[%clk 0:01:57]}  Kh8 {[%clk 0:02:31]} 18. Ng4 {[%clk 0:01:56]}  Ng8 {[%clk 0:02:31]} 19. f3 {[%clk 0:01:47]}  Rac8 {[%clk 0:02:30]} 20. Qa4 {[%clk 0:01:44]}  Qf7 {[%clk 0:02:24]} 21. O-O-O {[%clk 0:01:44]}  Nf6 {[%clk 0:02:22]} 22. Nxf6 {[%clk 0:01:42]}  Bxf6 {[%clk 0:02:23]} 23. Kb1 {[%clk 0:01:42]}  Qe8 {[%clk 0:02:14]} 24. Qxe8 {[%clk 0:01:35]}  Rfxe8 {[%clk 0:02:14]} 25. Rd2 {[%clk 0:01:28]}  Rf8 {[%clk 0:02:08]} 26. d4 {[%clk 0:01:20]}  exd4 {[%clk 0:02:08]} 27. cxd4 {[%clk 0:01:20]}  c4 {[%clk 0:02:08]} 28. d5 {[%clk 0:01:09]}  c3 {[%clk 0:02:07]} 29. bxc3 {[%clk 0:01:09]}  Bxc3 {[%clk 0:02:07]} 30. Rd3 {[%clk 0:01:08]}  e5 {[%clk 0:02:03]} 31. Bb6 {[%clk 0:01:05]}  Rc4 {[%clk 0:02:03]} 32. Rc1 {[%clk 0:01:00]}  Rfc8 {[%clk 0:02:03]} 33. Ka2 {[%clk 0:00:54]}  Kg7 {[%clk 0:01:42]} 34. Rc2 {[%clk 0:00:51]}  Kf6 {[%clk 0:01:01]} 35. g4 {[%clk 0:00:49]}  Ke7 {[%clk 0:00:59]} 36. Kb3 {[%clk 0:00:47]}  Rb4+ {[%clk 0:00:58]} 37. Ka3 {[%clk 0:00:47]}  Rbc4 {[%clk 0:00:59]} 38. Kb3 {[%clk 0:00:47]}  Rb4+ {[%clk 0:00:57]} 39. Ka3 {[%clk 0:00:30]}  Rbc4 {[%clk 0:00:58]} 40. Re2 {[%clk 0:00:05]}  Bd4 {[%clk 0:00:41]} 41. Red2 {[%clk 0:00:03]}  Bxb6 {[%clk 0:00:39]} 42. axb6 {[%clk 0:00:04]}  R8c5 {[%clk 0:00:39]} 43. Rb3 {[%clk 0:00:03]}  Kd7 {[%clk 0:00:36]} 44. Kb2 {[%clk 0:00:02]}  Rc1 {[%clk 0:00:34]} 45. Re2 {[%clk 0:00:02]}  R5c4 {[%clk 0:00:28]} 46. Rd2 {[%clk 0:00:02]}  Rc5 {[%clk 0:00:18]} 47. Re2 {[%clk 0:00:02]}  R1c4 {[%clk 0:00:18]} 48. Rd2 {[%clk 0:00:02]}  a5 {[%clk 0:00:18]} 49. Ka3 {[%clk 0:00:02]}  a4 {[%clk 0:00:14]} 50. Rbd3 {[%clk 0:00:02]}  Rb5 {[%clk 0:00:03]} 51. Rb2 {[%clk 0:00:03]}  Rxb2 {[%clk 0:00:02]} 52. Kxb2 {[%clk 0:00:04]}  Rb4+ {[%clk 0:00:03]} 53. Ka3 {[%clk 0:00:04]}  Rxb6 {[%clk 0:00:04]} 54. Kxa4 {[%clk 0:00:04]}  Rb1 {[%clk 0:00:05]} 55. Rc3 {[%clk 0:00:04]}  Rb2 {[%clk 0:00:03]} 56. Ka5 {[%clk 0:00:03]}  Rb1 {[%clk 0:00:02]} 57. Ka4 {[%clk 0:00:04]}  Rb6 {[%clk 0:00:02]} 58. Ka5 {[%clk 0:00:04]}  Ra6+ {[%clk 0:00:02]} 59. Kb5 {[%clk 0:00:04]}  Ra1 {[%clk 0:00:03]} 60. Kb6 {[%clk 0:00:05]}  Rb1+ {[%clk 0:00:03]} 61. Ka7 {[%clk 0:00:06]}  Rb2 {[%clk 0:00:03]} 62. Kb8 {[%clk 0:00:05]}  b5 {[%clk 0:00:03]} 63. Kb7 {[%clk 0:00:05]}  b4 {[%clk 0:00:03]} 64. Rc7+ {[%clk 0:00:05]}  Kd8 {[%clk 0:00:04]} 65. Rc6 {[%clk 0:00:04]}  Ke7 {[%clk 0:00:03]} 66. Rc7+ {[%clk 0:00:03]}  Kd8 {[%clk 0:00:04]} 67. Rc6 {[%clk 0:00:02]}  Kd7 {[%clk 0:00:04]} 68. Rc7+ {[%clk 0:00:02]}  Ke8 {[%clk 0:00:05]} 69. Rc6 {[%clk 0:00:01]}  Ke7 {[%clk 0:00:06]} 70. Rc7+ {[%clk 0:00:01]}  Ke8 {[%clk 0:00:06]} 71. Rc6 {[%clk 0:00:01]}  Kd7 {[%clk 0:00:06]} 72. Rc7+ {[%clk 0:00:01]} 1/2-1/2


[Site "https://www.chess.com"]